[Event "*** Qualifier 2: Titled Tuesday 3|2 Blitz"]
[Site "Chess.com"]
[Date "2017.04.11"]
[Round "3"]
[White "stepanosinovsky"]
[Black "dhanushbharadwaj"]
[Result "0-1"]
[WhiteElo "2186"]
[BlackElo "2316"]
[TimeControl "180+2"]
[EndTime "13:36:19 PDT"]
[Termination "dhanushbharadwaj won on time"]

1. g3 {[%clk 0:03:02]} 1... Nf6 {[%clk 0:02:58.8]} 2. Bg2 {[%clk 0:03:03.9]}
2... g6 {[%clk 0:02:59.6]} 3. Nf3 {[%clk 0:03:05.8]} 3... Bg7 {[%clk 0:03:00.4]}
4. O-O {[%clk 0:03:07.7]} 4... O-O {[%clk 0:03:01.3]} 5. d3 {[%clk 0:03:08.8]}
5... d5 {[%clk 0:02:59.9]} 6. Nbd2 {[%clk 0:03:08.8]} 6... c5 {[%clk 0:02:56.5]}
7. e4 {[%clk 0:03:09.5]} 7... Nc6 {[%clk 0:02:56.8]} 8. Re1 {[%clk 0:03:09.2]}
8... dxe4 {[%clk 0:02:51.9]} 9. dxe4 {[%clk 0:03:09.8]} 9... Bg4 {[%clk
0:02:52.7]} 10. h3 {[%clk 0:03:03.5]} 10... Bxf3 {[%clk 0:02:52.9]} 11. Qxf3
{[%clk 0:03:00.7]} 11... e6 {[%clk 0:02:43.8]} 12. c3 {[%clk 0:02:49.2]} 12...
Qc7 {[%clk 0:02:37.2]} 13. Qe2 {[%clk 0:02:20]} 13... Rad8 {[%clk 0:02:35]} 14.
a4 {[%clk 0:01:47.4]} 14... Ne5 {[%clk 0:02:18.2]} 15. Nc4 {[%clk 0:01:44.9]}
15... Nd3 {[%clk 0:02:10.7]} 16. Rd1 {[%clk 0:01:44.6]} 16... Nxc1 {[%clk
0:02:11.5]} 17. Raxc1 {[%clk 0:01:45.2]} 17... Bh6 {[%clk 0:02:04.9]} 18. f4
{[%clk 0:01:37.9]} 18... Nh5 {[%clk 0:02:03.2]} 19. Qf2 {[%clk 0:01:17.3]} 19...
Nxg3 {[%clk 0:01:58.2]} 20. Qxg3 {[%clk 0:01:16.4]} 20... Bxf4 {[%clk
0:01:58.6]} 21. Qf3 {[%clk 0:00:53.1]} 21... Bxc1 {[%clk 0:01:58.6]} 22. Rxc1
{[%clk 0:00:54.5]} 22... a6 {[%clk 0:01:52]} 23. a5 {[%clk 0:00:47.1]} 23... Qe7
{[%clk 0:01:34.6]} 24. e5 {[%clk 0:00:44.3]} 24... Qg5 {[%clk 0:01:31.3]} 25.
Rf1 {[%clk 0:00:44.1]} 25... Rd7 {[%clk 0:01:28.7]} 26. Qg4 {[%clk 0:00:28.5]}
26... Qh6 {[%clk 0:00:54.4]} 27. Kh2 {[%clk 0:00:20.4]} 27... Qg7 {[%clk
0:00:52.2]} 28. Be4 {[%clk 0:00:18.2]} 28... f5 {[%clk 0:00:44.8]} 29. exf6
{[%clk 0:00:17]} 29... Rxf6 {[%clk 0:00:45.7]} 30. Rxf6 {[%clk 0:00:12.1]} 30...
Qxf6 {[%clk 0:00:47.6]} 31. Qg2 {[%clk 0:00:13.7]} 31... Qf4+ {[%clk 0:00:43.3]}
32. Qg3 {[%clk 0:00:08.2]} 32... Qxe4 {[%clk 0:00:41.5]} 33. Qb8+ {[%clk
0:00:08.5]} 33... Kg7 {[%clk 0:00:42]} 0-1

[Event "*** Qualifier 2: Titled Tuesday 3|2 Blitz"]
[Site "Chess.com"]
[Date "2017.04.11"]
[Round "3"]
[White "Hikaru"]
[Black "Indianlad"]
[Result "1-0"]
[WhiteElo "2913"]
[BlackElo "2587"]
[TimeControl "180+2"]
[EndTime "13:36:31 PDT"]
[Termination "Hikaru won by resignation"]

1. c4 {[%clk 0:03:02]} 1... Nf6 {[%clk 0:03:00.8]} 2. Nc3 {[%clk 0:03:02.4]}
2... g6 {[%clk 0:03:02.1]} 3. e4 {[%clk 0:03:02.8]} 3... Bg7 {[%clk 0:03:03.7]}
4. g3 {[%clk 0:03:04.2]} 4... O-O {[%clk 0:03:04.2]} 5. Bg2 {[%clk 0:03:05.8]}
5... c5 {[%clk 0:03:05.8]} 6. Nge2 {[%clk 0:03:07.5]} 6... Nc6 {[%clk
0:03:07.4]} 7. d3 {[%clk 0:03:09.4]} 7... d6 {[%clk 0:03:09]} 8. O-O {[%clk
0:03:11.3]} 8... Bg4 {[%clk 0:03:10.6]} 9. h3 {[%clk 0:03:11.9]} 9... Bxe2
{[%clk 0:03:11.4]} 10. Qxe2 {[%clk 0:03:13.2]} 10... Nd7 {[%clk 0:03:13.3]} 11.
f4 {[%clk 0:03:14.2]} 11... a6 {[%clk 0:03:14.3]} 12. Kh2 {[%clk 0:03:14.9]}
12... Rb8 {[%clk 0:03:15.7]} 13. Qf2 {[%clk 0:03:13.1]} 13... Nd4 {[%clk
0:03:14.1]} 14. Be3 {[%clk 0:03:12.4]} 14... b5 {[%clk 0:03:15.5]} 15. cxb5
{[%clk 0:03:09.2]} 15... axb5 {[%clk 0:03:14.7]} 16. Rae1 {[%clk 0:03:00.4]}
16... b4 {[%clk 0:03:14]} 17. Na4 {[%clk 0:03:00.2]} 17... b3 {[%clk 0:03:13]}
18. axb3 {[%clk 0:02:55.5]} 18... Rxb3 {[%clk 0:03:10]} 19. Rd1 {[%clk
0:02:56.5]} 19... Qb8 {[%clk 0:02:47.1]} 20. Rd2 {[%clk 0:02:55.1]} 20... Nb5
{[%clk 0:02:38.2]} 21. e5 {[%clk 0:02:51.9]} 21... dxe5 {[%clk 0:02:23.6]} 22.
Bd5 {[%clk 0:02:48.1]} 22... Rb4 {[%clk 0:02:20.9]} 23. Nxc5 {[%clk 0:02:48.7]}
23... Qd6 {[%clk 0:01:56.8]} 24. Nxd7 {[%clk 0:02:40.2]} 24... Qxd7 {[%clk
0:01:53.6]} 25. Bc5 {[%clk 0:02:35.9]} 25... exf4 {[%clk 0:01:46.3]} 26. Bxb4
{[%clk 0:02:15]} 26... fxg3+ {[%clk 0:01:47.3]} 27. Qxg3 {[%clk 0:02:16.9]}
27... Qxd5 {[%clk 0:01:48.4]} 28. Qf3 {[%clk 0:02:15.6]} 28... Qd7 {[%clk
0:01:37.9]} 29. Qe4 {[%clk 0:01:59.7]} 29... Re8 {[%clk 0:00:57.3]} 30. Qc4
{[%clk 0:01:52.2]} 30... Bf6 {[%clk 0:00:57.7]} 31. Bc5 {[%clk 0:01:39.2]} 31...
Qc7+ {[%clk 0:00:55.2]} 32. Kg2 {[%clk 0:01:39.1]} 32... Qc6+ {[%clk 0:00:56.5]}
33. Rf3 {[%clk 0:01:38]} 33... Rc8 {[%clk 0:00:57.4]} 34. b4 {[%clk 0:01:38.7]}
34... Qd7 {[%clk 0:00:48.9]} 35. Qg4 {[%clk 0:01:38.3]} 35... Qb7 {[%clk
0:00:49.8]} 36. Qe4 {[%clk 0:01:38.6]} 36... Qd7 {[%clk 0:00:51.2]} 37. d4
{[%clk 0:01:38.6]} 37... Nd6 {[%clk 0:00:49.1]} 38. Qd5 {[%clk 0:01:36.3]} 38...
Rd8 {[%clk 0:00:48.2]} 39. Bxd6 {[%clk 0:01:36]} 39... Qa4 {[%clk 0:00:48.9]}
40. Qa5 {[%clk 0:01:32.7]} 40... Qxa5 {[%clk 0:00:49.6]} 41. bxa5 {[%clk
0:01:34.6]} 41... Rxd6 {[%clk 0:00:51.3]} 42. d5 {[%clk 0:01:34.9]} 42... Ra6
{[%clk 0:00:52.2]} 43. Ra3 {[%clk 0:01:35.3]} 43... Be5 {[%clk 0:00:52.5]} 44.
Rc2 {[%clk 0:01:35.2]} 44... Bd6 {[%clk 0:00:43.8]} 45. Rc6 {[%clk 0:01:33.1]}
45... Ra7 {[%clk 0:00:39.4]} 46. Ra2 {[%clk 0:01:32.5]} 46... Kg7 {[%clk
0:00:40.6]} 47. a6 {[%clk 0:01:33.9]} 47... Kf6 {[%clk 0:00:41.8]} 48. Re2
{[%clk 0:01:34.3]} 48... h5 {[%clk 0:00:42]} 49. Kf3 {[%clk 0:01:35.3]} 49...
Ra8 {[%clk 0:00:43.1]} 50. Ke4 {[%clk 0:01:35.7]} 50... Rb8 {[%clk 0:00:44.2]}
51. Rf2+ {[%clk 0:01:36.8]} 51... Kg7 {[%clk 0:00:44.7]} 52. Ra2 {[%clk
0:01:36.6]} 52... Rb4+ {[%clk 0:00:44.1]} 53. Kd3 {[%clk 0:01:37.3]} 53... Bb8
{[%clk 0:00:45.3]} 54. a7 {[%clk 0:01:36.8]} 54... Bxa7 {[%clk 0:00:46.5]} 55.
Rxa7 {[%clk 0:01:38.7]} 55... Rb3+ {[%clk 0:00:47.5]} 56. Ke2 {[%clk 0:01:39.8]}
56... Rxh3 {[%clk 0:00:43.7]} 57. Rxe7 {[%clk 0:01:40.7]} 1-0

[Event "*** Qualifier 2: Titled Tuesday 3|2 Blitz"]
[Site "Chess.com"]
[Date "2017.04.11"]
[Round "3"]
[White "jncool68"]
[Black "ftorodent"]
[Result "0-1"]
[WhiteElo "2499"]
[BlackElo "2507"]
[TimeControl "180+2"]
[EndTime "13:36:33 PDT"]
[Termination "ftorodent won on time"]

1. e4 {[%clk 0:02:54.9]} 1... e6 {[%clk 0:02:59.7]} 2. d4 {[%clk 0:02:55.1]}
2... d5 {[%clk 0:03:00.7]} 3. Nc3 {[%clk 0:02:55.4]} 3... Bb4 {[%clk 0:02:59.7]}
4. e5 {[%clk 0:02:55]} 4... Ne7 {[%clk 0:02:59.7]} 5. Bd2 {[%clk 0:02:53.4]}
5... O-O {[%clk 0:02:56.9]} 6. a3 {[%clk 0:02:51]} 6... Bxc3 {[%clk 0:02:56.9]}
7. Bxc3 {[%clk 0:02:52.9]} 7... b6 {[%clk 0:02:58.3]} 8. f4 {[%clk 0:02:52]}
8... Ba6 {[%clk 0:02:57.6]} 9. Bxa6 {[%clk 0:02:50.6]} 9... Nxa6 {[%clk
0:02:58.7]} 10. Nf3 {[%clk 0:02:52.3]} 10... c5 {[%clk 0:02:56.1]} 11. O-O
{[%clk 0:02:52.6]} 11... Rc8 {[%clk 0:02:52.1]} 12. g4 {[%clk 0:02:46.2]} 12...
Qd7 {[%clk 0:02:34.4]} 13. Qd3 {[%clk 0:02:42.4]} 13... Nc7 {[%clk 0:02:32.9]}
14. b4 {[%clk 0:02:37.1]} 14... Nb5 {[%clk 0:02:26.5]} 15. bxc5 {[%clk
0:02:34.2]} 15... bxc5 {[%clk 0:02:19.3]} 16. Bb2 {[%clk 0:02:26.2]} 16... c4
{[%clk 0:01:45.1]} 17. Qe3 {[%clk 0:02:23.8]} 17... c3 {[%clk 0:01:44.3]} 18.
Bc1 {[%clk 0:02:24.2]} 18... Rc4 {[%clk 0:01:44.8]} 19. a4 {[%clk 0:02:24.4]}
19... Nc7 {[%clk 0:01:45.6]} 20. Ba3 {[%clk 0:02:25.4]} 20... Rc8 {[%clk
0:01:27.3]} 21. f5 {[%clk 0:02:26.3]} 21... exf5 {[%clk 0:01:21.2]} 22. Bxe7
{[%clk 0:02:21.6]} 22... f4 {[%clk 0:01:20.9]} 23. Qxf4 {[%clk 0:02:21.1]} 23...
Qxe7 {[%clk 0:01:22.1]} 24. Rad1 {[%clk 0:02:19.7]} 24... Ne6 {[%clk 0:01:21.8]}
25. Qe3 {[%clk 0:02:17.3]} 25... Rxa4 {[%clk 0:01:22.8]} 26. h4 {[%clk
0:02:15.7]} 26... h6 {[%clk 0:01:19.8]} 27. g5 {[%clk 0:02:16.2]} 27... h5
{[%clk 0:01:20.8]} 28. Rd3 {[%clk 0:02:16.1]} 28... g6 {[%clk 0:01:16.5]} 29.
Rxc3 {[%clk 0:02:15.4]} 29... Rxc3 {[%clk 0:01:16.1]} 30. Qxc3 {[%clk
0:02:17.3]} 30... Rc4 {[%clk 0:01:15.1]} 31. Qb3 {[%clk 0:02:17.6]} 31... Nxd4
{[%clk 0:01:07.1]} 32. Nxd4 {[%clk 0:02:18.7]} 32... Rxd4 {[%clk 0:01:07.7]} 33.
Qb8+ {[%clk 0:02:20.3]} 33... Kg7 {[%clk 0:00:56.3]} 34. Rf6 {[%clk 0:02:08.9]}
34... Rg4+ {[%clk 0:00:46.8]} 35. Kf1 {[%clk 0:02:08.8]} 35... Qc5 {[%clk
0:00:43.9]} 36. e6 {[%clk 0:01:40]} 36... Qg1+ {[%clk 0:00:39.4]} 37. Ke2 {[%clk
0:01:41.2]} 37... Re4+ {[%clk 0:00:40.6]} 38. Kf3 {[%clk 0:01:35.9]} 38... Re3+
{[%clk 0:00:40.7]} 0-1

[Event "*** Qualifier 2: Titled Tuesday 3|2 Blitz"]
[Site "Chess.com"]
[Date "2017.04.11"]
[Round "3"]
[White "hansen"]
[Black "oskariot"]
[Result "0-1"]
[WhiteElo "2657"]
[BlackElo "2412"]
[TimeControl "180+2"]
[EndTime "13:36:47 PDT"]
[Termination "oskariot won by resignation"]

1. Nf3 {[%clk 0:03:01.3]} 1... c5 {[%clk 0:02:58.5]} 2. g3 {[%clk 0:03:02.7]}
2... g6 {[%clk 0:02:59.6]} 3. Bg2 {[%clk 0:03:03.9]} 3... Bg7 {[%clk 0:03:01.3]}
4. O-O {[%clk 0:03:04.8]} 4... Nc6 {[%clk 0:03:02.9]} 5. d3 {[%clk 0:03:03.5]}
5... e5 {[%clk 0:03:01.2]} 6. c4 {[%clk 0:02:59.3]} 6... Nge7 {[%clk 0:03:02.2]}
7. Nc3 {[%clk 0:03:00.8]} 7... d6 {[%clk 0:03:01.6]} 8. Ne1 {[%clk 0:03:02.2]}
8... Be6 {[%clk 0:03:02.2]} 9. Nc2 {[%clk 0:03:03.2]} 9... d5 {[%clk 0:03:03.8]}
10. cxd5 {[%clk 0:03:05.1]} 10... Nxd5 {[%clk 0:03:05.7]} 11. Bd2 {[%clk
0:03:05.5]} 11... O-O {[%clk 0:03:02.1]} 12. a3 {[%clk 0:03:05.3]} 12... Nxc3
{[%clk 0:02:42.8]} 13. Bxc3 {[%clk 0:03:05.3]} 13... Nd4 {[%clk 0:02:29.2]} 14.
e3 {[%clk 0:02:38.7]} 14... Nb3 {[%clk 0:02:10.7]} 15. Rb1 {[%clk 0:02:39.2]}
15... Qd7 {[%clk 0:02:10.1]} 16. Na1 {[%clk 0:02:12]} 16... Nxa1 {[%clk
0:02:01.3]} 17. Rxa1 {[%clk 0:02:13.9]} 17... Rab8 {[%clk 0:01:55.6]} 18. Qc2
{[%clk 0:01:46.8]} 18... Rfc8 {[%clk 0:01:53.1]} 19. f4 {[%clk 0:01:41.9]} 19...
exf4 {[%clk 0:01:48.7]} 20. gxf4 {[%clk 0:01:32.4]} 20... Bxc3 {[%clk
0:01:45.1]} 21. Qxc3 {[%clk 0:01:32.2]} 21... Bh3 {[%clk 0:01:44.2]} 22. Rf2
{[%clk 0:01:22.8]} 22... Re8 {[%clk 0:01:26.4]} 23. Re1 {[%clk 0:01:17.1]} 23...
b6 {[%clk 0:01:24.9]} 24. Rf3 {[%clk 0:00:38.6]} 24... Bxg2 {[%clk 0:01:25.2]}
25. Kxg2 {[%clk 0:00:40.5]} 25... Rbd8 {[%clk 0:01:24.9]} 26. e4 {[%clk
0:00:26.6]} 26... Qg4+ {[%clk 0:01:24.5]} 27. Kf2 {[%clk 0:00:25]} 27... Qh4+
{[%clk 0:01:20.5]} 28. Kg2 {[%clk 0:00:24.8]} 28... Rd4 {[%clk 0:01:02.3]} 29.
h3 {[%clk 0:00:21.5]} 29... Red8 {[%clk 0:00:58.5]} 30. Ree3 {[%clk 0:00:21.7]}
30... c4 {[%clk 0:00:52.8]} 31. e5 {[%clk 0:00:13.2]} 31... cxd3 {[%clk
0:00:49.2]} 32. Rxd3 {[%clk 0:00:14.4]} 32... Rxd3 {[%clk 0:00:48.5]} 33. Rxd3
{[%clk 0:00:15.7]} 33... Rxd3 {[%clk 0:00:50.1]} 34. Qxd3 {[%clk 0:00:17.1]}
34... Qxf4 {[%clk 0:00:51.5]} 35. Qd8+ {[%clk 0:00:15.2]} 35... Kg7 {[%clk
0:00:52.8]} 36. Qd6 {[%clk 0:00:16.7]} 36... h5 {[%clk 0:00:52.4]} 37. b4 {[%clk
0:00:08.6]} 37... h4 {[%clk 0:00:52.4]} 38. Kg1 {[%clk 0:00:05.3]} 38... Qg3+
{[%clk 0:00:52]} 39. Kf1 {[%clk 0:00:06.9]} 39... Qxh3+ {[%clk 0:00:52.9]} 40.
Ke2 {[%clk 0:00:08.2]} 40... Qg4+ {[%clk 0:00:54.1]} 41. Kf2 {[%clk 0:00:09.2]}
41... Qf4+ {[%clk 0:00:52.7]} 42. Kg2 {[%clk 0:00:09.8]} 42... Qg3+ {[%clk
0:00:53.9]} 43. Kh1 {[%clk 0:00:11]} 43... h3 {[%clk 0:00:42.9]} 44. Qf6+ {[%clk
0:00:12]} 44... Kg8 {[%clk 0:00:44.4]} 45. Qd8+ {[%clk 0:00:11.3]} 45... Kh7
{[%clk 0:00:45.8]} 0-1

[Event "*** Qualifier 2: Titled Tuesday 3|2 Blitz"]
[Site "Chess.com"]
[Date "2017.04.11"]
[Round "3"]
[White "EvgenyT"]
[Black "wonderfultime"]
[Result "1/2-1/2"]
[WhiteElo "2498"]
[BlackElo "2679"]
[TimeControl "180+2"]
[EndTime "13:36:54 PDT"]
[Termination "Game drawn by repetition"]

1. d4 {[%clk 0:02:53.5]} 1... d5 {[%clk 0:03:00.7]} 2. Nf3 {[%clk 0:02:54.3]}
2... Nf6 {[%clk 0:03:01.6]} 3. c4 {[%clk 0:02:55.7]} 3... c6 {[%clk 0:03:03.1]}
4. Nc3 {[%clk 0:02:56.2]} 4... dxc4 {[%clk 0:03:04.2]} 5. a4 {[%clk 0:02:56.6]}
5... Bf5 {[%clk 0:03:05.4]} 6. Ne5 {[%clk 0:02:55.8]} 6... Nbd7 {[%clk
0:03:06.6]} 7. Nxc4 {[%clk 0:02:56.8]} 7... Nb6 {[%clk 0:03:08.5]} 8. Ne5 {[%clk
0:02:57.4]} 8... a5 {[%clk 0:03:09.7]} 9. g3 {[%clk 0:02:54.6]} 9... e6 {[%clk
0:03:06.9]} 10. Bg2 {[%clk 0:02:55.3]} 10... Bb4 {[%clk 0:03:08.4]} 11. O-O
{[%clk 0:02:55.5]} 11... h6 {[%clk 0:03:09.7]} 12. e3 {[%clk 0:02:45.4]} 12...
O-O {[%clk 0:03:08.7]} 13. Qe2 {[%clk 0:02:46.8]} 13... Bh7 {[%clk 0:03:01.2]}
14. Rd1 {[%clk 0:02:47.4]} 14... Re8 {[%clk 0:02:36.4]} 15. Nd3 {[%clk
0:02:39.2]} 15... Bf8 {[%clk 0:02:35.1]} 16. Bd2 {[%clk 0:02:39.3]} 16... Nfd5
{[%clk 0:02:29.3]} 17. Be1 {[%clk 0:02:36.7]} 17... Nb4 {[%clk 0:02:27.7]} 18.
Ne5 {[%clk 0:01:57.2]} 18... Nc2 {[%clk 0:02:18.6]} 19. Rac1 {[%clk 0:01:56.8]}
19... Nxe1 {[%clk 0:02:19.8]} 20. Qxe1 {[%clk 0:01:56.2]} 20... Nd5 {[%clk
0:02:19.2]} 21. Ne4 {[%clk 0:01:49.4]} 21... Nb4 {[%clk 0:02:19]} 22. Qe2 {[%clk
0:01:44.4]} 22... Rc8 {[%clk 0:02:15]} 23. Bf3 {[%clk 0:01:26.5]} 23... Rc7
{[%clk 0:02:14.7]} 24. Nc5 {[%clk 0:01:20.8]} 24... Qe7 {[%clk 0:01:24.4]} 25.
Kg2 {[%clk 0:01:20.7]} 25... Rd8 {[%clk 0:01:20.7]} 26. Nc4 {[%clk 0:01:20.4]}
26... Ra8 {[%clk 0:01:09.4]} 27. h4 {[%clk 0:01:20.6]} 27... Qf6 {[%clk
0:01:08.6]} 28. Nb3 {[%clk 0:01:02.3]} 28... Qd8 {[%clk 0:00:41.8]} 29. h5
{[%clk 0:00:39]} 29... Rd7 {[%clk 0:00:38.5]} 30. Ne5 {[%clk 0:00:37.6]} 30...
Rc7 {[%clk 0:00:38.2]} 31. Nc4 {[%clk 0:00:32.9]} 31... Rd7 {[%clk 0:00:38.9]}
32. Ne5 {[%clk 0:00:32.5]} 32... Rc7 {[%clk 0:00:40.2]} 33. Nc5 {[%clk
0:00:31.3]} 33... Bxc5 {[%clk 0:00:25.3]} 34. Rxc5 {[%clk 0:00:31.5]} 34... b6
{[%clk 0:00:26.4]} 35. Rc3 {[%clk 0:00:22.7]} 35... Rac8 {[%clk 0:00:26.9]} 36.
Nc4 {[%clk 0:00:17.9]} 36... Rb7 {[%clk 0:00:25.1]} 37. Ne5 {[%clk 0:00:18.3]}
37... Rbc7 {[%clk 0:00:25.8]} 38. Nc4 {[%clk 0:00:19.5]} 38... Rb7 {[%clk
0:00:26.7]} 39. Ne5 {[%clk 0:00:20.6]} 39... Rbc7 {[%clk 0:00:26.1]} 40. Nc4
{[%clk 0:00:20.2]} 1/2-1/2

[Event "*** Qualifier 2: Titled Tuesday 3|2 Blitz"]
[Site "Chess.com"]
[Date "2017.04.11"]
[Round "3"]
[White "FearNoEvil12"]
[Black "chesstatour"]
[Result "0-1"]
[WhiteElo "2077"]
[BlackElo "1936"]
[TimeControl "180+2"]
[EndTime "13:37:10 PDT"]
[Termination "chesstatour won by checkmate"]

1. e4 {[%clk 0:03:02]} 1... c6 {[%clk 0:03:00.4]} 2. d4 {[%clk 0:03:02.1]} 2...
d5 {[%clk 0:03:01.1]} 3. Nc3 {[%clk 0:03:03.6]} 3... dxe4 {[%clk 0:03:01.6]} 4.
Nxe4 {[%clk 0:03:05.5]} 4... Nf6 {[%clk 0:03:02.5]} 5. Ng3 {[%clk 0:03:06.4]}
5... h5 {[%clk 0:03:03.2]} 6. Bc4 {[%clk 0:03:06.2]} 6... h4 {[%clk 0:03:05.1]}
7. N3e2 {[%clk 0:03:06.8]} 7... h3 {[%clk 0:03:03]} 8. gxh3 {[%clk 0:03:06.1]}
8... Bxh3 {[%clk 0:03:01.3]} 9. Nxh3 {[%clk 0:03:06.7]} 9... Rxh3 {[%clk
0:03:02.9]} 10. Be3 {[%clk 0:03:05]} 10... Nbd7 {[%clk 0:02:46.8]} 11. Nf4
{[%clk 0:03:04]} 11... Rh8 {[%clk 0:02:42.4]} 12. Qd3 {[%clk 0:02:58.1]} 12...
Nb6 {[%clk 0:02:36.2]} 13. Bxf7+ {[%clk 0:02:41.2]} 13... Kxf7 {[%clk
0:01:56.7]} 14. Qg6+ {[%clk 0:02:42.5]} 14... Kg8 {[%clk 0:01:56.7]} 15. O-O-O
{[%clk 0:02:43]} 15... Qe8 {[%clk 0:01:44.2]} 16. Qf5 {[%clk 0:02:41.8]} 16...
Qd7 {[%clk 0:01:23]} 17. Qg6 {[%clk 0:02:34.8]} 17... Qg4 {[%clk 0:01:11.2]} 18.
Qd3 {[%clk 0:02:34.6]} 18... Nbd5 {[%clk 0:00:50.1]} 19. Rhg1 {[%clk 0:02:27.7]}
19... Qf3 {[%clk 0:00:38.3]} 20. Ne6 {[%clk 0:02:14.8]} 20... Qe4 {[%clk
0:00:18.1]} 21. Qxe4 {[%clk 0:02:13.9]} 21... Nxe4 {[%clk 0:00:20]} 22. Rg4
{[%clk 0:02:04.1]} 22... Nxe3 {[%clk 0:00:16]} 23. fxe3 {[%clk 0:01:45.6]} 23...
Nf2 {[%clk 0:00:16.4]} 24. Rdg1 {[%clk 0:01:46.4]} 24... Nxg4 {[%clk 0:00:16.5]}
25. Rxg4 {[%clk 0:01:48]} 25... Rh6 {[%clk 0:00:16.8]} 26. Ng5 {[%clk
0:01:39.1]} 26... e6 {[%clk 0:00:16.2]} 27. h4 {[%clk 0:01:36.3]} 27... Be7
{[%clk 0:00:16.9]} 28. Nf3 {[%clk 0:01:36.6]} 28... Rf8 {[%clk 0:00:17.5]} 29.
Ne5 {[%clk 0:01:36.1]} 29... Rxh4 {[%clk 0:00:12.9]} 30. Rg1 {[%clk 0:01:31.6]}
30... Rh2 {[%clk 0:00:09.3]} 31. Ng4 {[%clk 0:01:23.9]} 31... Rh4 {[%clk
0:00:05.9]} 32. Kd2 {[%clk 0:01:21.9]} 32... Bf6 {[%clk 0:00:06.9]} 33. Kd3
{[%clk 0:01:21.5]} 33... Kf7 {[%clk 0:00:08.1]} 34. c4 {[%clk 0:01:17.7]} 34...
Rd8 {[%clk 0:00:09.1]} 35. b4 {[%clk 0:01:17.3]} 35... e5 {[%clk 0:00:10.1]} 36.
b5 {[%clk 0:00:49.1]} 36... exd4 {[%clk 0:00:10.4]} 37. bxc6 {[%clk 0:00:47.7]}
37... bxc6 {[%clk 0:00:10.8]} 38. e4 {[%clk 0:00:46.5]} 38... Rh3+ {[%clk
0:00:11.4]} 39. Kd2 {[%clk 0:00:38.3]} 39... Bg5+ {[%clk 0:00:11.6]} 40. Kd1
{[%clk 0:00:38.2]} 40... Be3 {[%clk 0:00:08.2]} 41. Rf1+ {[%clk 0:00:33]} 41...
Kg8 {[%clk 0:00:08.4]} 42. Ne5 {[%clk 0:00:28.8]} 42... Rb8 {[%clk 0:00:07.8]}
43. Kc2 {[%clk 0:00:13.2]} 43... Rh2+ {[%clk 0:00:07]} 44. Kd3 {[%clk
0:00:11.7]} 44... Rd2# {[%clk 0:00:07.4]} 0-1

[Event "*** Qualifier 2: Titled Tuesday 3|2 Blitz"]
[Site "Chess.com"]
[Date "2017.04.11"]
[Round "3"]
[White "jeaston1"]
[Black "rpragchess"]
[Result "0-1"]
[WhiteElo "2096"]
[BlackElo "2167"]
[TimeControl "180+2"]
[EndTime "13:37:15 PDT"]
[Termination "rpragchess won by resignation"]

1. d4 {[%clk 0:03:02]} 1... Nf6 {[%clk 0:03:01]} 2. c4 {[%clk 0:03:02]} 2... g6
{[%clk 0:03:01.5]} 3. Nc3 {[%clk 0:03:02.8]} 3... d5 {[%clk 0:03:03.1]} 4. cxd5
{[%clk 0:03:02.4]} 4... Nxd5 {[%clk 0:03:03.5]} 5. e4 {[%clk 0:03:04]} 5... Nxc3
{[%clk 0:03:04.7]} 6. bxc3 {[%clk 0:03:04.3]} 6... Bg7 {[%clk 0:03:06.3]} 7. Nf3
{[%clk 0:03:05.1]} 7... c5 {[%clk 0:03:05.5]} 8. Be3 {[%clk 0:03:06.3]} 8... Qa5
{[%clk 0:03:00.3]} 9. Qd2 {[%clk 0:03:05.6]} 9... O-O {[%clk 0:03:00.3]} 10. Rc1
{[%clk 0:03:04.8]} 10... Bg4 {[%clk 0:03:00.7]} 11. d5 {[%clk 0:02:56.8]} 11...
e6 {[%clk 0:02:57.2]} 12. c4 {[%clk 0:02:48.8]} 12... Qxd2+ {[%clk 0:02:56.9]}
13. Nxd2 {[%clk 0:02:46.6]} 13... exd5 {[%clk 0:02:57.1]} 14. cxd5 {[%clk
0:02:45.9]} 14... b6 {[%clk 0:02:57.5]} 15. f3 {[%clk 0:02:40.1]} 15... Bc8
{[%clk 0:02:57.5]} 16. Nc4 {[%clk 0:02:32.3]} 16... Nd7 {[%clk 0:02:55.5]} 17.
Nd6 {[%clk 0:02:29]} 17... f5 {[%clk 0:02:52.6]} 18. Bb5 {[%clk 0:02:18.6]}
18... Ne5 {[%clk 0:02:41.7]} 19. O-O {[%clk 0:02:13.6]} 19... Bd7 {[%clk
0:02:36.8]} 20. Bxd7 {[%clk 0:02:01.9]} 20... Nxd7 {[%clk 0:02:36.2]} 21. Bg5
{[%clk 0:01:55.9]} 21... fxe4 {[%clk 0:02:04.4]} 22. fxe4 {[%clk 0:01:51.4]}
22... Bd4+ {[%clk 0:02:04.2]} 23. Kh1 {[%clk 0:01:51.4]} 23... Ne5 {[%clk
0:02:04.9]} 24. Be7 {[%clk 0:01:46.6]} 24... Rxf1+ {[%clk 0:02:02.9]} 25. Rxf1
{[%clk 0:01:45.9]} 25... Nd3 {[%clk 0:02:00.1]} 26. g3 {[%clk 0:01:43.6]} 26...
a6 {[%clk 0:01:50.6]} 27. Nc4 {[%clk 0:01:41.7]} 27... b5 {[%clk 0:01:40.8]} 28.
Nb6 {[%clk 0:01:40.1]} 28... Rb8 {[%clk 0:01:28.7]} 29. d6 {[%clk 0:01:22.4]}
29... Rxb6 {[%clk 0:01:27.3]} 30. d7 {[%clk 0:01:21.7]} 30... Rb8 {[%clk
0:01:28.7]} 31. d8=Q+ {[%clk 0:01:10]} 31... Rxd8 {[%clk 0:01:28.6]} 32. Bxd8
{[%clk 0:01:11.9]} 32... c4 {[%clk 0:01:29.4]} 33. Kg2 {[%clk 0:01:07.1]} 33...
c3 {[%clk 0:01:19.4]} 34. Kf3 {[%clk 0:01:04.3]} 34... c2 {[%clk 0:01:20.3]} 35.
Bg5 {[%clk 0:01:04.6]} 35... Bb2 {[%clk 0:01:21.1]} 36. Ke2 {[%clk 0:00:48.4]}
36... c1=Q {[%clk 0:01:18.2]} 37. Bxc1 {[%clk 0:00:49.2]} 37... Nxc1+ {[%clk
0:01:19.8]} 38. Kd2 {[%clk 0:00:42.6]} 38... Nxa2 {[%clk 0:01:17.6]} 39. Kc2
{[%clk 0:00:43.4]} 39... Be5 {[%clk 0:01:17]} 40. Kb3 {[%clk 0:00:36.8]} 40...
Nc3 {[%clk 0:01:14.8]} 41. Rc1 {[%clk 0:00:30.7]} 41... Nxe4 {[%clk 0:01:09.7]}
42. Rc6 {[%clk 0:00:29.1]} 42... Kf7 {[%clk 0:01:02.7]} 43. Kc2 {[%clk
0:00:28.3]} 43... a5 {[%clk 0:01:00.8]} 44. Kd3 {[%clk 0:00:29.3]} 44... Nd6
{[%clk 0:01:00.9]} 45. Rc5 {[%clk 0:00:26.4]} 45... Ke6 {[%clk 0:01:00.8]} 46.
Rc6 {[%clk 0:00:20.7]} 46... a4 {[%clk 0:01:00.7]} 47. Rc7 {[%clk 0:00:21.4]}
47... h5 {[%clk 0:00:59.9]} 48. Ra7 {[%clk 0:00:21.7]} 48... Kf5 {[%clk
0:00:55.3]} 49. Ra5 {[%clk 0:00:22.4]} 49... g5 {[%clk 0:00:53]} 50. Ra6 {[%clk
0:00:21.4]} 50... g4 {[%clk 0:00:48.7]} 51. Ke3 {[%clk 0:00:22.1]} 51... a3
{[%clk 0:00:47.3]} 52. Kd3 {[%clk 0:00:22.3]} 52... b4 {[%clk 0:00:48.3]} 53.
Kc2 {[%clk 0:00:23.9]} 53... Ne4 {[%clk 0:00:47.9]} 54. Kb3 {[%clk 0:00:23.9]}
54... Nc5+ {[%clk 0:00:48.5]} 0-1